[Event "*** Titled Tuesday Blitz"]
[Site "Chess.com"]
[Date "2021.02.09"]
[Round "2"]
[White "sara_khm"]
[Black "J36225"]
[Result "1/2-1/2"]
[WhiteElo "2698"]
[BlackElo "2482"]
[TimeControl "180+1"]
[EndTime "10:18:31 PST"]
[Termination "Game drawn by repetition"]

1. d4 {[%clk 0:03:00.9]} 1... Nf6 {[%clk 0:02:59.5]} 2. c4 {[%clk 0:03:00.4]}
2... e6 {[%clk 0:02:59.3]} 3. Nf3 {[%clk 0:02:59.4]} 3... d5 {[%clk 0:02:58]} 4.
Nc3 {[%clk 0:02:59]} 4... Nbd7 {[%clk 0:02:56.1]} 5. e3 {[%clk 0:02:55.1]} 5...
Be7 {[%clk 0:02:51.4]} 6. Bd3 {[%clk 0:02:53]} 6... O-O {[%clk 0:02:48.7]} 7.
O-O {[%clk 0:02:51.1]} 7... c5 {[%clk 0:02:48.2]} 8. cxd5 {[%clk 0:02:49.8]}
8... Nxd5 {[%clk 0:02:47.5]} 9. Nxd5 {[%clk 0:02:49.4]} 9... exd5 {[%clk
0:02:46.7]} 10. b3 {[%clk 0:02:47.3]} 10... cxd4 {[%clk 0:02:45.6]} 11. Nxd4
{[%clk 0:02:46.6]} 11... Nc5 {[%clk 0:02:44.6]} 12. Bb2 {[%clk 0:02:44.1]} 12...
Bf6 {[%clk 0:02:44.1]} 13. Rc1 {[%clk 0:02:37.4]} 13... Ne6 {[%clk 0:02:43]} 14.
Bb1 {[%clk 0:02:32.8]} 14... Nxd4 {[%clk 0:02:38.8]} 15. Bxd4 {[%clk 0:02:32.3]}
15... Be6 {[%clk 0:02:36.3]} 16. Qd3 {[%clk 0:02:30.5]} 16... g6 {[%clk
0:02:32.5]} 17. Rfd1 {[%clk 0:02:28.8]} 17... Bxd4 {[%clk 0:02:25.3]} 18. Qxd4
{[%clk 0:02:28.7]} 18... Qa5 {[%clk 0:02:21.2]} 19. Rc5 {[%clk 0:02:18.3]} 19...
Qb6 {[%clk 0:02:14]} 20. Rdc1 {[%clk 0:02:13.5]} 20... Qd6 {[%clk 0:01:29.7]}
21. h4 {[%clk 0:02:07.7]} 21... h5 {[%clk 0:01:16.2]} 22. Bd3 {[%clk 0:01:59.9]}
22... b6 {[%clk 0:01:12.9]} 23. Rc6 {[%clk 0:01:58.5]} 23... Qa3 {[%clk
0:01:06.8]} 24. R1c2 {[%clk 0:01:49.4]} 24... Rac8 {[%clk 0:01:05.9]} 25. Rxc8
{[%clk 0:01:30.6]} 25... Rxc8 {[%clk 0:01:05]} 26. Rxc8+ {[%clk 0:01:30.4]}
26... Bxc8 {[%clk 0:01:04.8]} 27. Qxd5 {[%clk 0:01:30]} 27... Be6 {[%clk
0:01:04.7]} 28. Qd8+ {[%clk 0:01:23.4]} 28... Kg7 {[%clk 0:01:04.3]} 29. Qd4+
{[%clk 0:01:23.1]} 29... Kg8 {[%clk 0:01:02]} 30. Qf6 {[%clk 0:01:00]} 30...
Qxa2 {[%clk 0:00:28.1]} 31. Bxg6 {[%clk 0:00:59.6]} 31... Qxb3 {[%clk
0:00:28.1]} 32. Bxh5 {[%clk 0:00:45]} 32... a5 {[%clk 0:00:27.8]} 33. Bf3 {[%clk
0:00:35]} 33... Qb1+ {[%clk 0:00:25]} 34. Kh2 {[%clk 0:00:34.2]} 34... a4 {[%clk
0:00:24.6]} 35. h5 {[%clk 0:00:32.4]} 35... a3 {[%clk 0:00:23.1]} 36. h6 {[%clk
0:00:23.8]} 36... Qg6 {[%clk 0:00:20.6]} 37. Qd8+ {[%clk 0:00:21.3]} 37... Kh7
{[%clk 0:00:20.3]} 38. Qd4 {[%clk 0:00:16]} 38... Qxh6+ {[%clk 0:00:18.5]} 39.
Kg1 {[%clk 0:00:16.4]} 39... Qg7 {[%clk 0:00:18.2]} 40. Be4+ {[%clk 0:00:16.3]}
40... Kg8 {[%clk 0:00:16]} 41. Qd8+ {[%clk 0:00:15.6]} 41... Qf8 {[%clk
0:00:16.2]} 42. Qg5+ {[%clk 0:00:15.7]} 42... Qg7 {[%clk 0:00:16.4]} 43. Qd8+
{[%clk 0:00:15.8]} 43... Qf8 {[%clk 0:00:16.5]} 44. Qg5+ {[%clk 0:00:15]} 44...
Qg7 {[%clk 0:00:16.7]} 45. Qd8+ {[%clk 0:00:14.8]} 1/2-1/2

[Event "*** Titled Tuesday Blitz"]
[Site "Chess.com"]
[Date "2021.02.09"]
[Round "2"]
[White "Alexander_Zubov"]
[Black "FontVella8"]
[Result "1-0"]
[WhiteElo "2983"]
[BlackElo "2569"]
[TimeControl "180+1"]
[EndTime "10:18:33 PST"]
[Termination "Alexander_Zubov won on time"]

1. d4 {[%clk 0:03:00.9]} 1... d5 {[%clk 0:02:59]} 2. c4 {[%clk 0:03:00.3]} 2...
c6 {[%clk 0:02:58.4]} 3. Nf3 {[%clk 0:02:59.6]} 3... Nf6 {[%clk 0:02:58.4]} 4.
Qb3 {[%clk 0:02:58.3]} 4... dxc4 {[%clk 0:02:58.2]} 5. Qxc4 {[%clk 0:02:58.4]}
5... e6 {[%clk 0:02:58.8]} 6. Bg5 {[%clk 0:02:56.5]} 6... b5 {[%clk 0:02:58.3]}
7. Qb3 {[%clk 0:02:55.7]} 7... Bb7 {[%clk 0:02:56.6]} 8. Nbd2 {[%clk 0:02:54.3]}
8... a6 {[%clk 0:02:46.6]} 9. a4 {[%clk 0:02:53.5]} 9... Nbd7 {[%clk 0:02:44.4]}
10. e4 {[%clk 0:02:48.9]} 10... Be7 {[%clk 0:02:41.6]} 11. e5 {[%clk 0:02:43.6]}
11... Nd5 {[%clk 0:02:41.2]} 12. Bxe7 {[%clk 0:02:40.8]} 12... Qxe7 {[%clk
0:02:42]} 13. Ne4 {[%clk 0:02:39.2]} 13... O-O {[%clk 0:02:40.2]} 14. Nd6 {[%clk
0:02:35.3]} 14... N7b6 {[%clk 0:02:37.7]} 15. a5 {[%clk 0:02:27.1]} 15... Nc8
{[%clk 0:02:37.6]} 16. Ne4 {[%clk 0:02:26.9]} 16... f6 {[%clk 0:02:16.3]} 17.
Rc1 {[%clk 0:01:37.6]} 17... fxe5 {[%clk 0:02:15.2]} 18. dxe5 {[%clk 0:01:36.8]}
18... Qc7 {[%clk 0:01:35.6]} 19. Qa3 {[%clk 0:01:34.6]} 19... b4 {[%clk
0:01:25.8]} 20. Qa4 {[%clk 0:01:25.5]} 20... Rxf3 {[%clk 0:01:22.6]} 21. gxf3
{[%clk 0:01:25.2]} 21... Qxe5 {[%clk 0:01:22.8]} 22. Bc4 {[%clk 0:01:12.6]}
22... Nd6 {[%clk 0:01:19.8]} 23. Qc2 {[%clk 0:01:02.6]} 23... Rf8 {[%clk
0:01:14.1]} 24. O-O {[%clk 0:00:56.9]} 24... Nf5 {[%clk 0:01:07.6]} 25. Ng5
{[%clk 0:00:37.4]} 25... Qf6 {[%clk 0:00:25.2]} 26. Ne4 {[%clk 0:00:37.2]} 26...
Qh4 {[%clk 0:00:19.9]} 27. Rcd1 {[%clk 0:00:32.3]} 27... Nf4 {[%clk 0:00:19]}
28. Rfe1 {[%clk 0:00:25.2]} 28... Qh6 {[%clk 0:00:06.2]} 29. Bf1 {[%clk
0:00:12.4]} 29... Nh4 {[%clk 0:00:06.2]} 30. Re3 {[%clk 0:00:12.1]} 30... c5
{[%clk 0:00:04.3]} 31. Rd7 {[%clk 0:00:10]} 31... Bc6 {[%clk 0:00:02.7]} 32. Rd6
{[%clk 0:00:10]} 32... Bd5 {[%clk 0:00:02.4]} 33. Kh1 {[%clk 0:00:08.8]} 33...
Nf5 {[%clk 0:00:01.9]} 34. Qxc5 {[%clk 0:00:06.9]} 34... Nxe3 {[%clk 0:00:01.7]}
35. Qxe3 {[%clk 0:00:07.4]} 35... g5 {[%clk 0:00:01.1]} 36. Rxa6 {[%clk
0:00:07.1]} 36... Qg6 {[%clk 0:00:01.5]} 37. Rd6 {[%clk 0:00:05]} 1-0

[Event "*** Titled Tuesday Blitz"]
[Site "Chess.com"]
[Date "2021.02.09"]
[Round "2"]
[White "GM_Huschenbeth"]
[Black "TheBigBoss04"]
[Result "1-0"]
[WhiteElo "2542"]
[BlackElo "2754"]
[TimeControl "180+1"]
[EndTime "10:18:33 PST"]
[Termination "GM_Huschenbeth won on time"]

1. e4 {[%clk 0:03:00.9]} 1... c5 {[%clk 0:02:59.7]} 2. Nf3 {[%clk 0:03:00.5]}
2... g6 {[%clk 0:02:59.8]} 3. d4 {[%clk 0:03:00.2]} 3... cxd4 {[%clk 0:03:00]}
4. Nxd4 {[%clk 0:03:01.1]} 4... Bg7 {[%clk 0:02:58.4]} 5. c4 {[%clk 0:03:00.8]}
5... Nc6 {[%clk 0:02:58]} 6. Be3 {[%clk 0:03:00.4]} 6... Qb6 {[%clk 0:02:58.1]}
7. Nb3 {[%clk 0:02:56.9]} 7... Qd8 {[%clk 0:02:58]} 8. Nc3 {[%clk 0:02:56.7]}
8... Bxc3+ {[%clk 0:02:56.3]} 9. bxc3 {[%clk 0:02:57.6]} 9... Nf6 {[%clk
0:02:55.1]} 10. Bd3 {[%clk 0:02:48.9]} 10... d6 {[%clk 0:02:50.7]} 11. O-O
{[%clk 0:02:48.8]} 11... O-O {[%clk 0:02:38.7]} 12. c5 {[%clk 0:02:16.7]} 12...
Ng4 {[%clk 0:02:34]} 13. Bc1 {[%clk 0:02:08.2]} 13... dxc5 {[%clk 0:02:29.7]}
14. h3 {[%clk 0:02:06]} 14... Nge5 {[%clk 0:02:26.9]} 15. Be2 {[%clk 0:01:59.2]}
15... Qxd1 {[%clk 0:01:51.2]} 16. Rxd1 {[%clk 0:02:00.1]} 16... c4 {[%clk
0:01:42.4]} 17. Nd2 {[%clk 0:01:51.9]} 17... Be6 {[%clk 0:01:30.5]} 18. f4
{[%clk 0:01:27.8]} 18... Nd3 {[%clk 0:01:30.5]} 19. Nxc4 {[%clk 0:01:28.3]}
19... Bxc4 {[%clk 0:01:24.4]} 20. Bxd3 {[%clk 0:01:27.8]} 20... Rfd8 {[%clk
0:01:24.3]} 21. Bc2 {[%clk 0:01:28.2]} 21... Rxd1+ {[%clk 0:01:00.3]} 22. Bxd1
{[%clk 0:01:28]} 22... Rd8 {[%clk 0:01:00.9]} 23. Be3 {[%clk 0:01:27.5]} 23...
Rd3 {[%clk 0:00:58.9]} 24. Kf2 {[%clk 0:01:25.5]} 24... Rxc3 {[%clk 0:00:57.7]}
25. Rb1 {[%clk 0:01:08.5]} 25... b6 {[%clk 0:00:54.1]} 26. Rb2 {[%clk
0:00:53.5]} 26... Ra3 {[%clk 0:00:49.4]} 27. Bb3 {[%clk 0:00:49.1]} 27... Bxb3
{[%clk 0:00:42.7]} 28. axb3 {[%clk 0:00:50]} 28... Na5 {[%clk 0:00:43]} 29. Rc2
{[%clk 0:00:33.7]} 29... Nxb3 {[%clk 0:00:40.4]} 30. Rc7 {[%clk 0:00:28]} 30...
e6 {[%clk 0:00:36.6]} 31. f5 {[%clk 0:00:23.9]} 31... Ra2+ {[%clk 0:00:16.5]}
32. Kg1 {[%clk 0:00:15.4]} 32... Kf8 {[%clk 0:00:05.1]} 33. f6 {[%clk
0:00:13.1]} 33... Ke8 {[%clk 0:00:05.3]} 34. Re7+ {[%clk 0:00:13.3]} 34... Kd8
{[%clk 0:00:04.8]} 35. Rxf7 {[%clk 0:00:13.8]} 35... Nc5 {[%clk 0:00:02.6]} 36.
Rxh7 {[%clk 0:00:08.3]} 36... Nxe4 {[%clk 0:00:01.3]} 37. f7 {[%clk 0:00:08.4]}
37... Ra1+ {[%clk 0:00:02.2]} 38. Kh2 {[%clk 0:00:08.1]} 38... Ke7 {[%clk
0:00:03.1]} 39. Bh6 {[%clk 0:00:07.8]} 1-0

[Event "*** Titled Tuesday Blitz"]
[Site "Chess.com"]
[Date "2021.02.09"]
[Round "2"]
[White "RaneshRatnesan"]
[Black "TokChess"]
[Result "1-0"]
[WhiteElo "2200"]
[BlackElo "2399"]
[TimeControl "180+1"]
[EndTime "10:18:33 PST"]
[Termination "RaneshRatnesan won by checkmate"]

1. d4 {[%clk 0:03:00.9]} 1... Nf6 {[%clk 0:02:59.5]} 2. Bf4 {[%clk 0:03:00.7]}
2... g6 {[%clk 0:02:59.5]} 3. e3 {[%clk 0:02:58.4]} 3... d6 {[%clk 0:02:59.9]}
4. Nf3 {[%clk 0:02:58.6]} 4... Nh5 {[%clk 0:02:58.7]} 5. Bg5 {[%clk 0:02:58.3]}
5... h6 {[%clk 0:02:58.1]} 6. Bh4 {[%clk 0:02:58.8]} 6... Bg7 {[%clk 0:02:56.4]}
7. Bd3 {[%clk 0:02:57.6]} 7... Nc6 {[%clk 0:02:53.6]} 8. c3 {[%clk 0:02:39.9]}
8... g5 {[%clk 0:02:48.8]} 9. Bg3 {[%clk 0:02:37.1]} 9... Nxg3 {[%clk
0:02:48.9]} 10. hxg3 {[%clk 0:02:37]} 10... e6 {[%clk 0:02:49.8]} 11. e4 {[%clk
0:02:36.7]} 11... e5 {[%clk 0:02:40.8]} 12. d5 {[%clk 0:02:35.7]} 12... Nb8
{[%clk 0:02:41.1]} 13. Ng1 {[%clk 0:02:30.4]} 13... a5 {[%clk 0:02:36.8]} 14. g4
{[%clk 0:02:30]} 14... Nd7 {[%clk 0:02:32.8]} 15. Bc2 {[%clk 0:02:27.1]} 15...
Nc5 {[%clk 0:02:32.8]} 16. Nd2 {[%clk 0:02:24.6]} 16... a4 {[%clk 0:02:31.2]}
17. Ne2 {[%clk 0:02:18.4]} 17... Bd7 {[%clk 0:02:31.1]} 18. Ng3 {[%clk
0:02:17.9]} 18... Qb8 {[%clk 0:02:14.8]} 19. Nc4 {[%clk 0:02:16]} 19... b5
{[%clk 0:02:08.2]} 20. Ne3 {[%clk 0:02:14.9]} 20... Bf8 {[%clk 0:02:08]} 21.
Ngf5 {[%clk 0:01:54.1]} 21... b4 {[%clk 0:02:06.7]} 22. Qe2 {[%clk 0:01:37.4]}
22... bxc3 {[%clk 0:02:04.3]} 23. bxc3 {[%clk 0:01:36.5]} 23... Qb2 {[%clk
0:02:03.7]} 24. O-O {[%clk 0:01:34.3]} 24... Qxc3 {[%clk 0:01:48.1]} 25. Rab1
{[%clk 0:01:30.6]} 25... Qa5 {[%clk 0:01:18.1]} 26. Nc4 {[%clk 0:01:17.5]} 26...
Qa6 {[%clk 0:01:14.8]} 27. Rb4 {[%clk 0:01:11.2]} 27... Bxf5 {[%clk 0:01:08.7]}
28. exf5 {[%clk 0:01:02.9]} 28... Be7 {[%clk 0:01:08.5]} 29. f6 {[%clk
0:00:48.7]} 29... Bxf6 {[%clk 0:01:08]} 30. Qf3 {[%clk 0:00:49.2]} 30... Ke7
{[%clk 0:00:59.6]} 31. Rfb1 {[%clk 0:00:48.2]} 31... Qa7 {[%clk 0:00:49.5]} 32.
Rb5 {[%clk 0:00:34.4]} 32... Rab8 {[%clk 0:00:47.5]} 33. Na5 {[%clk 0:00:28.4]}
33... Rb6 {[%clk 0:00:17.8]} 34. Rxb6 {[%clk 0:00:28.5]} 34... Qxa5 {[%clk
0:00:18]} 35. R6b5 {[%clk 0:00:24.9]} 35... Qd2 {[%clk 0:00:17.1]} 36. Bf5
{[%clk 0:00:20.9]} 36... Ra8 {[%clk 0:00:13.9]} 37. Rb7 {[%clk 0:00:17.4]} 37...
Kd8 {[%clk 0:00:11.5]} 38. Rb8+ {[%clk 0:00:17.2]} 38... Rxb8 {[%clk 0:00:11.7]}
39. Rxb8+ {[%clk 0:00:18.1]} 39... Ke7 {[%clk 0:00:12.5]} 40. Rc8 {[%clk
0:00:18.4]} 40... Qc1+ {[%clk 0:00:11.5]} 41. Kh2 {[%clk 0:00:18.6]} 41... Na6
{[%clk 0:00:10.6]} 42. Qe4 {[%clk 0:00:17]} 42... Qc5 {[%clk 0:00:09.2]} 43.
Qxa4 {[%clk 0:00:16.3]} 43... Bg7 {[%clk 0:00:06.7]} 44. Qd7+ {[%clk 0:00:16.3]}
44... Kf6 {[%clk 0:00:07]} 45. Qd8# {[%clk 0:00:15.4]} 1-0

[Event "*** Titled Tuesday Blitz"]
[Site "Chess.com"]
[Date "2021.02.09"]
[Round "2"]
[White "andy_rekt"]
[Black "federicosellitti"]
[Result "1-0"]
[WhiteElo "2243"]
[BlackElo "2437"]
[TimeControl "180+1"]
[EndTime "10:18:34 PST"]
[Termination "andy_rekt won by resignation"]

1. d4 {[%clk 0:03:00.9]} 1... d5 {[%clk 0:02:59.8]} 2. c4 {[%clk 0:02:56.1]}
2... Nc6 {[%clk 0:03:00]} 3. cxd5 {[%clk 0:02:54.9]} 3... Qxd5 {[%clk
0:03:00.9]} 4. Nf3 {[%clk 0:02:54.4]} 4... e5 {[%clk 0:02:56.7]} 5. Nc3 {[%clk
0:02:54.7]} 5... Bb4 {[%clk 0:02:56.5]} 6. a3 {[%clk 0:02:49.2]} 6... Bxc3+
{[%clk 0:02:51.5]} 7. bxc3 {[%clk 0:02:50.1]} 7... e4 {[%clk 0:02:38]} 8. Nd2
{[%clk 0:02:46.7]} 8... Nf6 {[%clk 0:02:36.2]} 9. e3 {[%clk 0:02:42.8]} 9... Qg5
{[%clk 0:02:25.6]} 10. Qc2 {[%clk 0:02:29.3]} 10... Bf5 {[%clk 0:02:19.1]} 11.
g3 {[%clk 0:02:28]} 11... h5 {[%clk 0:01:36.4]} 12. h4 {[%clk 0:02:14.4]} 12...
Qg6 {[%clk 0:01:35.8]} 13. Bg2 {[%clk 0:02:13.4]} 13... O-O {[%clk 0:01:33.5]}
14. O-O {[%clk 0:02:11]} 14... Rfe8 {[%clk 0:01:32.4]} 15. c4 {[%clk 0:02:10.2]}
15... Bg4 {[%clk 0:01:16.8]} 16. Re1 {[%clk 0:01:54.3]} 16... Ne7 {[%clk
0:00:48.9]} 17. Nxe4 {[%clk 0:01:33.5]} 17... Nd7 {[%clk 0:00:34.5]} 18. Qb3
{[%clk 0:01:24.1]} 18... Nf5 {[%clk 0:00:34]} 19. Qxb7 {[%clk 0:01:17.7]} 19...
Nxh4 {[%clk 0:00:30.9]} 20. gxh4 {[%clk 0:00:57]} 20... c6 {[%clk 0:00:20.7]}
21. Ng3 {[%clk 0:00:53.1]} 21... Nf6 {[%clk 0:00:18.6]} 22. Qxc6 {[%clk
0:00:50.7]} 22... Qc2 {[%clk 0:00:15.7]} 23. d5 {[%clk 0:00:46.1]} 23... Rac8
{[%clk 0:00:15.3]} 24. Qa6 {[%clk 0:00:43.1]} 24... Qc3 {[%clk 0:00:14.5]} 25.
Bb2 {[%clk 0:00:40.2]} 25... Qxb2 {[%clk 0:00:14.6]} 26. Rab1 {[%clk 0:00:39.8]}
26... Qc2 {[%clk 0:00:13.6]} 27. Rec1 {[%clk 0:00:39]} 27... Qd2 {[%clk
0:00:14.2]} 28. Nf1 {[%clk 0:00:32.5]} 28... Qd3 {[%clk 0:00:09.9]} 29. Qxa7
{[%clk 0:00:28.3]} 29... Qg6 {[%clk 0:00:09.2]} 30. Qd4 {[%clk 0:00:25.4]} 30...
Bf3 {[%clk 0:00:08.2]} 31. Ng3 {[%clk 0:00:25.6]} 31... Bxg2 {[%clk 0:00:08.6]}
32. Kxg2 {[%clk 0:00:26.5]} 32... Ng4 {[%clk 0:00:09.2]} 33. Rb7 {[%clk
0:00:22.8]} 33... Red8 {[%clk 0:00:05.7]} 34. Qf4 {[%clk 0:00:21.5]} 34... f6
{[%clk 0:00:04.3]} 35. Qf5 {[%clk 0:00:20.4]} 35... Qe8 {[%clk 0:00:03.7]} 36.
Qe6+ {[%clk 0:00:19.8]} 36... Qxe6 {[%clk 0:00:03.8]} 37. dxe6 {[%clk
0:00:20.7]} 37... Rd2 {[%clk 0:00:04]} 38. Ne4 {[%clk 0:00:19.6]} 38... Rdd8
{[%clk 0:00:01.7]} 39. e7 {[%clk 0:00:19.5]} 39... Ne5 {[%clk 0:00:02.2]} 40.
exd8=Q+ {[%clk 0:00:19.1]} 40... Rxd8 {[%clk 0:00:03.1]} 41. c5 {[%clk
0:00:19.4]} 41... Nd3 {[%clk 0:00:03.2]} 42. Rc3 {[%clk 0:00:18.4]} 42... Ne5
{[%clk 0:00:03.2]} 43. c6 {[%clk 0:00:18.7]} 43... Rc8 {[%clk 0:00:03.8]} 44. c7
{[%clk 0:00:18.5]} 44... Nc6 {[%clk 0:00:04]} 45. Rxc6 {[%clk 0:00:17.7]} 1-0

[Event "*** Titled Tuesday Blitz"]
[Site "Chess.com"]
[Date "2021.02.09"]
[Round "2"]
[White "Sibelephant"]
[Black "anantone"]
[Result "1-0"]
[WhiteElo "3032"]
[BlackElo "2587"]
[TimeControl "180+1"]
[EndTime "10:18:35 PST"]
[Termination "Sibelephant won on time"]

1. e4 {[%clk 0:03:00.2]} 1... e6 {[%clk 0:02:57.6]} 2. Qe2 {[%clk 0:02:59.9]}
2... c5 {[%clk 0:02:57.1]} 3. g3 {[%clk 0:03:00.1]} 3... Nc6 {[%clk 0:02:54.3]}
4. Bg2 {[%clk 0:03:00.5]} 4... Be7 {[%clk 0:02:54.6]} 5. Nf3 {[%clk 0:03:00.7]}
5... d5 {[%clk 0:02:54.6]} 6. d3 {[%clk 0:02:59.2]} 6... Nf6 {[%clk 0:02:54.8]}
7. O-O {[%clk 0:02:59.5]} 7... O-O {[%clk 0:02:54.6]} 8. e5 {[%clk 0:03:00]}
8... Nd7 {[%clk 0:02:54.2]} 9. c4 {[%clk 0:03:00.7]} 9... b5 {[%clk 0:02:53.3]}
10. b3 {[%clk 0:02:51.3]} 10... bxc4 {[%clk 0:02:49.9]} 11. bxc4 {[%clk
0:02:50.1]} 11... Nb6 {[%clk 0:02:43.9]} 12. Nc3 {[%clk 0:02:42.3]} 12... Ba6
{[%clk 0:02:40.1]} 13. Nb5 {[%clk 0:02:41.7]} 13... Qd7 {[%clk 0:02:10.8]} 14.
a4 {[%clk 0:02:28.3]} 14... Na5 {[%clk 0:01:53.9]} 15. Rd1 {[%clk 0:02:23.6]}
15... Rfd8 {[%clk 0:01:37.5]} 16. Bf4 {[%clk 0:02:16.4]} 16... Nb3 {[%clk
0:01:26.2]} 17. Rab1 {[%clk 0:02:12]} 17... Bxb5 {[%clk 0:01:07]} 18. axb5
{[%clk 0:02:09.9]} 18... Nd4 {[%clk 0:01:03.2]} 19. Nxd4 {[%clk 0:02:07.6]}
19... cxd4 {[%clk 0:01:04.1]} 20. h4 {[%clk 0:02:03.6]} 20... Rac8 {[%clk
0:01:04]} 21. Rbc1 {[%clk 0:01:47.4]} 21... dxc4 {[%clk 0:00:54.9]} 22. Bc6
{[%clk 0:01:44.3]} 22... Rxc6 {[%clk 0:00:51.8]} 23. bxc6 {[%clk 0:01:44.4]}
23... Qxc6 {[%clk 0:00:52.6]} 24. dxc4 {[%clk 0:01:44.9]} 24... Na4 {[%clk
0:00:50.9]} 25. Bg5 {[%clk 0:01:36.5]} 25... Bxg5 {[%clk 0:00:32.8]} 26. hxg5
{[%clk 0:01:37.4]} 26... Nc5 {[%clk 0:00:32.2]} 27. Rb1 {[%clk 0:01:26.7]} 27...
g6 {[%clk 0:00:19.1]} 28. Qa2 {[%clk 0:01:15.9]} 28... a6 {[%clk 0:00:17.2]} 29.
Qa5 {[%clk 0:01:15.6]} 29... Rd7 {[%clk 0:00:14.8]} 30. Qb6 {[%clk 0:00:46.1]}
30... Qxb6 {[%clk 0:00:13]} 31. Rxb6 {[%clk 0:00:47]} 31... d3 {[%clk
0:00:12.6]} 32. f3 {[%clk 0:00:46.2]} 32... Kf8 {[%clk 0:00:11.5]} 33. Rc6
{[%clk 0:00:45.3]} 33... Nb3 {[%clk 0:00:09.9]} 34. Rd6 {[%clk 0:00:45.5]} 34...
Rxd6 {[%clk 0:00:09.8]} 35. exd6 {[%clk 0:00:45.5]} 35... d2 {[%clk 0:00:10.5]}
36. Kf2 {[%clk 0:00:44.2]} 36... a5 {[%clk 0:00:10.7]} 37. Ke3 {[%clk 0:00:38]}
37... Ke8 {[%clk 0:00:10.6]} 38. Rxd2 {[%clk 0:00:21.1]} 38... Nxd2 {[%clk
0:00:08]} 39. Kxd2 {[%clk 0:00:22]} 39... Kd7 {[%clk 0:00:06.9]} 40. c5 {[%clk
0:00:22.4]} 40... e5 {[%clk 0:00:03.3]} 41. Kc3 {[%clk 0:00:22.5]} 41... Kc6
{[%clk 0:00:03.9]} 42. Kc4 {[%clk 0:00:22.4]} 42... a4 {[%clk 0:00:03.8]} 43.
Kb4 {[%clk 0:00:22.7]} 43... e4 {[%clk 0:00:04.7]} 44. fxe4 {[%clk 0:00:22.6]}
44... a3 {[%clk 0:00:04.7]} 45. Kxa3 {[%clk 0:00:23]} 1-0

[Event "*** Titled Tuesday Blitz"]
[Site "Chess.com"]
[Date "2021.02.09"]
[Round "2"]
[White "alejogarcia1999"]
[Black "The_filthy"]
[Result "0-1"]
[WhiteElo "2447"]
[BlackElo "2271"]
[TimeControl "180+1"]
[EndTime "10:18:35 PST"]
[Termination "The_filthy won by resignation"]

1. d4 {[%clk 0:03:00.9]} 1... d5 {[%clk 0:02:59.8]} 2. c4 {[%clk 0:03:00.9]}
2... c6 {[%clk 0:03:00.3]} 3. e3 {[%clk 0:03:00.6]} 3... Nf6 {[%clk 0:03:00.8]}
4. Nc3 {[%clk 0:03:00.2]} 4... g6 {[%clk 0:03:00.8]} 5. Nf3 {[%clk 0:02:58.8]}
5... Bg4 {[%clk 0:03:00]} 6. b3 {[%clk 0:02:57.9]} 6... Bg7 {[%clk 0:02:57.3]}
7. Be2 {[%clk 0:02:57.7]} 7... O-O {[%clk 0:02:57]} 8. h3 {[%clk 0:02:57.8]}
8... Bxf3 {[%clk 0:02:57.2]} 9. Bxf3 {[%clk 0:02:58.6]} 9... e6 {[%clk
0:02:57.5]} 10. O-O {[%clk 0:02:58.5]} 10... Nbd7 {[%clk 0:02:57.3]} 11. Ba3
{[%clk 0:02:57]} 11... Re8 {[%clk 0:02:56.9]} 12. cxd5 {[%clk 0:02:56.7]} 12...
exd5 {[%clk 0:02:56.3]} 13. Bd6 {[%clk 0:02:54.8]} 13... Ne4 {[%clk 0:02:55.4]}
14. Nxe4 {[%clk 0:02:52]} 14... dxe4 {[%clk 0:02:53.5]} 15. Be2 {[%clk
0:02:51.3]} 15... Nb6 {[%clk 0:02:51.3]} 16. Bh2 {[%clk 0:02:47.7]} 16... Nd5
{[%clk 0:02:50.9]} 17. Rc1 {[%clk 0:02:47.4]} 17... h5 {[%clk 0:02:43.2]} 18.
Bc4 {[%clk 0:02:45.2]} 18... Rc8 {[%clk 0:02:27.3]} 19. Bxd5 {[%clk 0:02:42.3]}
19... cxd5 {[%clk 0:02:15.6]} 20. Qd2 {[%clk 0:02:38.3]} 20... Qb6 {[%clk
0:02:10.4]} 21. Rxc8 {[%clk 0:02:35.4]} 21... Rxc8 {[%clk 0:02:07.2]} 22. Rc1
{[%clk 0:02:36.3]} 22... Rc6 {[%clk 0:02:02.6]} 23. Rc2 {[%clk 0:02:27.8]} 23...
Qb5 {[%clk 0:01:53.3]} 24. Bg3 {[%clk 0:02:13.1]} 24... Bf8 {[%clk 0:01:26.8]}
25. Qc1 {[%clk 0:02:12]} 25... Ba3 {[%clk 0:01:22]} 26. Qxa3 {[%clk 0:02:01.5]}
26... Rxc2 {[%clk 0:01:20.3]} 27. Qe7 {[%clk 0:01:59.6]} 27... Qc6 {[%clk
0:01:07.2]} 28. Qd8+ {[%clk 0:01:55.3]} 28... Kh7 {[%clk 0:01:03.2]} 29. Be5
{[%clk 0:01:54.9]} 29... f6 {[%clk 0:01:01.5]} 30. Qe7+ {[%clk 0:01:52.2]} 30...
Kg8 {[%clk 0:00:59]} 31. Qd8+ {[%clk 0:01:38.5]} 31... Kf7 {[%clk 0:00:47.7]}
32. Bd6 {[%clk 0:01:36.1]} 32... Qe8 {[%clk 0:00:42.5]} 33. Qa5 {[%clk
0:01:32.4]} 33... Qd7 {[%clk 0:00:38.8]} 34. Bg3 {[%clk 0:01:31.1]} 34... g5
{[%clk 0:00:36.8]} 35. Qxa7 {[%clk 0:01:08]} 35... h4 {[%clk 0:00:32.9]} 36. Bb8
{[%clk 0:01:07.2]} 36... Rc8 {[%clk 0:00:29.5]} 37. Kh2 {[%clk 0:00:55.1]} 37...
Qd8 {[%clk 0:00:22.6]} 38. Qxb7+ {[%clk 0:00:54.6]} 38... Kg6 {[%clk 0:00:22.6]}
39. f4 {[%clk 0:00:41.4]} 39... Rxb8 {[%clk 0:00:20.5]} 40. f5+ {[%clk
0:00:41.2]} 40... Kxf5 {[%clk 0:00:14.6]} 41. Qh7+ {[%clk 0:00:41]} 41... Ke6
{[%clk 0:00:14.4]} 42. Qa7 {[%clk 0:00:39.6]} 42... Rc8 {[%clk 0:00:12.1]} 43.
Qa6+ {[%clk 0:00:37.8]} 43... Qd6+ {[%clk 0:00:12.3]} 44. Qxd6+ {[%clk 0:00:38]}
44... Kxd6 {[%clk 0:00:13.2]} 45. Kg1 {[%clk 0:00:38.7]} 45... Rc2 {[%clk
0:00:12.9]} 46. a4 {[%clk 0:00:38.6]} 46... Rb2 {[%clk 0:00:13]} 47. g3 {[%clk
0:00:39.5]} 47... hxg3 {[%clk 0:00:12.5]} 48. a5 {[%clk 0:00:39]} 48... Rxb3
{[%clk 0:00:12.6]} 49. h4 {[%clk 0:00:39.9]} 49... gxh4 {[%clk 0:00:12.3]} 50.
a6 {[%clk 0:00:40.4]} 50... Ra3 {[%clk 0:00:12.6]} 51. a7 {[%clk 0:00:41.3]}
51... Rxa7 {[%clk 0:00:12.7]} 52. Kg2 {[%clk 0:00:42.2]} 52... Ra2+ {[%clk
0:00:12.8]} 53. Kh3 {[%clk 0:00:43.1]} 53... Rh2+ {[%clk 0:00:13]} 54. Kg4
{[%clk 0:00:43.6]} 54... g2 {[%clk 0:00:13.9]} 55. Kh5 {[%clk 0:00:43.1]} 55...
g1=Q {[%clk 0:00:13.6]} 0-1